fUST/lending_fUST_20250618
["ID","MTS","AMOUNT","RATE_DAILY","PERIOD"]
[366415611,1750237843999,-460.0,0.00022465,6]
[366415612,1750237844008,-646.13,0.00022465,6]
[366415614,1750237844016,-460.0,0.00022465,6]
[366415616,1750237844025,-524.71,0.00022465,6]
[366415618,1750237844034,-872.9,0.00022465,6]
[366415620,1750237844043,-589.96,0.00022465,6]
[366415622,1750237844052,-460.0,0.00022465,6]
[366415624,1750237844061,-460.0,0.00022465,6]
[366415626,1750237844071,-2708.45,0.00022465,6]
[366415628,1750237844080,-497.85,0.00022465,6]
[366415630,1750237844089,-676.0,0.00022465,6]
[366415632,1750237844098,-870.56,0.00022465,6]
[366415634,1750237844107,-160.0,0.00022506,2]
[366415636,1750237844116,-1000.0,0.00022521,2]
[366415638,1750237844126,-1183.1,0.00022528,6]
[366415640,1750237844135,-710.99,0.00022528,6]
[366415642,1750237844144,-515.49,0.00022528,6]
[366415644,1750237844154,-460.0,0.00022575,6]
[366415645,1750237844163,-1211.94,0.00022575,6]
[366415646,1750237844173,-639.15,0.00022575,6]
[366415647,1750237844183,-460.0,0.00022575,6]
[366415648,1750237844192,-460.0,0.00022575,6]
[366415649,1750237844205,-985.63,0.00022575,6]
[366415650,1750237844214,-861.56,0.00022575,6]
[366415651,1750237844223,-460.0,0.00022575,6]
[366415652,1750237844232,-460.0,0.00022575,6]
[366415654,1750237844243,-646.13,0.00022575,6]
[366415656,1750237844252,-460.0,0.00022575,6]
[366415658,1750237844262,-524.71,0.00022575,6]
[366415660,1750237844271,-872.9,0.00022575,6]
[366415662,1750237844283,-589.96,0.00022575,6]
[366415664,1750237844292,-460.0,0.00022575,6]
[366415666,1750237844301,-460.0,0.00022575,6]
[366415668,1750237844310,-2708.45,0.00022575,6]
[366415670,1750237844319,-497.85,0.00022575,6]
[366415672,1750237844330,-676.0,0.00022575,6]
[366415674,1750237844340,-870.56,0.00022575,6]
[366415676,1750237844349,-432.44242761,0.0002259,7]
[366415678,1750237844359,-1183.1,0.00022638,6]
[366415680,1750237844369,-710.99,0.00022638,6]
[366415682,1750237844378,-460.0,0.00022684,6]
[366415684,1750237844388,-1211.94,0.00022684,6]
[366415686,1750237844398,-639.15,0.00022684,6]
[366415688,1750237844408,-460.0,0.00022684,6]
[366415690,1750237844418,-460.0,0.00022684,6]
[366415692,1750237844427,-985.63,0.00022684,6]
[366415694,1750237844437,-861.56,0.00022684,6]
[366415696,1750237844446,-460.0,0.00022684,6]
[366415698,1750237844456,-460.0,0.00022684,6]
[366415700,1750237844467,-646.13,0.00022684,6]
[366415702,1750237844477,-460.0,0.00022684,6]
[366415704,1750237844486,-524.71,0.00022684,6]
[366415706,1750237844496,-872.9,0.00022684,6]
[366415708,1750237844505,-589.96,0.00022684,6]
[366415710,1750237844515,-460.0,0.00022684,6]
[366415712,1750237844524,-460.0,0.00022684,6]
[366415714,1750237844534,-2708.45,0.00022684,6]
[366415717,1750237844546,-497.85,0.00022684,6]
[366415719,1750237844557,-676.0,0.00022684,6]
[366415721,1750237844566,-870.56,0.00022684,6]
[366415723,1750237844575,-1993.04,0.000227,7]
[366415725,1750237844585,-1183.1,0.00022747,6]
[366415727,1750237844595,-710.99,0.00022747,6]
[366415729,1750237844605,-25000.0,0.00022759,2]
[366415731,1750237844614,-460.0,0.00022794,6]
[366415733,1750237844623,-1211.94,0.00022794,6]
[366415735,1750237844633,-639.15,0.00022794,6]
[366415737,1750237844643,-460.0,0.00022794,6]
[366415739,1750237844652,-460.0,0.00022794,6]
[366415740,1750237844661,-985.63,0.00022794,6]
[366415742,1750237844671,-861.56,0.00022794,6]
[366415744,1750237844680,-460.0,0.00022794,6]
[366415746,1750237844689,-460.0,0.00022794,6]
[366415748,1750237844699,-646.13,0.00022794,6]
[366415750,1750237844708,-460.0,0.00022794,6]
[366415752,1750237844720,-524.71,0.00022794,6]
[366415754,1750237844730,-872.9,0.00022794,6]
[366415756,1750237844739,-589.96,0.00022794,6]
[366415758,1750237844749,-460.0,0.00022794,6]
[366415760,1750237844759,-460.0,0.00022794,6]
[366415762,1750237844768,-2708.45,0.00022794,6]
[366415764,1750237844778,-497.85,0.00022794,6]
[366415767,1750237844789,-676.0,0.00022794,6]
[366415769,1750237844798,-870.56,0.00022794,6]
[366415771,1750237844808,-432.44242761,0.00022797,7]
[366415773,1750237844817,-250.0,0.00022807,2]
[366415775,1750237844827,-1183.1,0.00022857,6]
[366415777,1750237844837,-710.99,0.00022857,6]
[366415779,1750237844846,-671.49,0.000229,7]
[366415781,1750237844855,-194.43,0.00022904,6]
[366415783,1750237844865,-1211.94,0.00022904,6]
[366415785,1750237844875,-639.15,0.00022904,6]
[366415787,1750237844884,-460.0,0.00022904,6]
[366415789,1750237844893,-320.99,0.00022904,6]
[366415791,1750237844902,-985.63,0.00022904,6]
[366415793,1750237844912,-861.56,0.00022904,6]
[366415795,1750237844921,-460.0,0.00022904,6]
[366415797,1750237844931,-460.0,0.00022904,6]
[366415799,1750237844940,-646.13,0.00022904,6]
[366415801,1750237844949,-460.0,0.00022904,6]
[366415803,1750237844958,-524.71,0.00022904,6]
[366415805,1750237844968,-872.9,0.00022904,6]
[366415807,1750237844978,-589.96,0.00022904,6]
[366415809,1750237844987,-460.0,0.00022904,6]
[366415811,1750237844997,-460.0,0.00022904,6]
[366415813,1750237845006,-2708.45,0.00022904,6]
[366415815,1750237845015,-497.85,0.00022904,6]
[366415817,1750237845025,-676.0,0.00022904,6]
[366415819,1750237845034,-870.56,0.00022904,6]
[366415821,1750237845043,-1183.1,0.00022966,6]
[366415823,1750237845053,-710.99,0.00022966,6]
[366415824,1750237845063,-981.72583137,0.00022999,2]
[366415827,1750237845073,-432.44242761,0.00023003,8]
[366415828,1750237845082,-1211.94,0.00023013,6]
[366415830,1750237845092,-639.15,0.00023013,6]
[366415833,1750237845102,-460.0,0.00023013,6]
[366415835,1750237845111,-985.63,0.00023013,6]
[366415837,1750237845121,-861.56,0.00023013,6]
[366415839,1750237845130,-460.0,0.00023013,6]
[366415840,1750237845139,-460.0,0.00023013,6]
[366415842,1750237845148,-646.13,0.00023013,6]
[366415844,1750237845157,-460.0,0.00023013,6]
[366415846,1750237845166,-524.71,0.00023013,6]
[366415848,1750237845175,-872.9,0.00023013,6]
[366415850,1750237845184,-589.96,0.00023013,6]
[366415852,1750237845196,-460.0,0.00023013,6]
[366415855,1750237845207,-460.0,0.00023013,6]
[366415857,1750237845218,-2708.45,0.00023013,6]
[366415859,1750237845227,-497.85,0.00023013,6]
[366415861,1750237845238,-676.0,0.00023013,6]
[366415863,1750237845247,-870.56,0.00023013,6]
[366415865,1750237845258,-215.0738,0.00023032,2]
[366415867,1750237845268,-500.0,0.00023054,2]
[366415869,1750237845280,-1500.0,0.00023068,2]
[366415871,1750237845290,-1183.1,0.00023076,6]
[366415873,1750237845299,-710.99,0.00023076,6]
[366415875,1750237845308,-1211.94,0.00023123,6]
[366415877,1750237845317,-639.15,0.00023123,6]
[366415879,1750237845326,-460.0,0.00023123,6]
[366415881,1750237845335,-985.63,0.00023123,6]
[366415883,1750237845345,-861.56,0.00023123,6]
[366415885,1750237845353,-460.0,0.00023123,6]
[366415887,1750237845363,-460.0,0.00023123,6]
[366415889,1750237845372,-646.13,0.00023123,6]
[366415891,1750237845382,-460.0,0.00023123,6]
[366415893,1750237845391,-524.71,0.00023123,6]
[366415895,1750237845401,-872.9,0.00023123,6]
[366415897,1750237845412,-589.96,0.00023123,6]
[366415899,1750237845421,-476.7,0.00023123,6]
[366415901,1750237845431,-460.0,0.00023123,6]
[366415903,1750237845441,-2708.45,0.00023123,6]
[366415905,1750237845450,-497.85,0.00023123,6]
[366415907,1750237845462,-676.0,0.00023123,6]
[366415909,1750237845472,-870.56,0.00023123,6]
[366415911,1750237845482,-5000.0,0.00023157,2]
[366415913,1750237845490,-1183.1,0.00023186,6]
[366415915,1750237845501,-710.99,0.00023186,6]
[366415917,1750237845511,-432.44242761,0.0002321,8]
[366415919,1750237845520,-1211.94,0.00023232,6]
[366415921,1750237845530,-639.15,0.00023232,6]
[366415923,1750237845540,-460.0,0.00023232,6]
[366415925,1750237845550,-985.63,0.00023232,6]
[366415928,1750237845559,-861.56,0.00023232,6]
[366415930,1750237845570,-460.0,0.00023232,6]
[366415932,1750237845580,-460.0,0.00023232,6]
[366415934,1750237845590,-646.13,0.00023232,6]
[366415935,1750237845600,-460.0,0.00023232,6]
[366415938,1750237845611,-524.71,0.00023232,6]
[366415940,1750237845621,-872.9,0.00023232,6]
[366415942,1750237845630,-589.96,0.00023232,6]
[366415944,1750237845640,-460.0,0.00023232,6]
[366415945,1750237845649,-2708.45,0.00023232,6]
[366415948,1750237845659,-497.85,0.00023232,6]
[366415950,1750237845669,-676.0,0.00023232,6]
[366415952,1750237845678,-870.56,0.00023232,6]
[366415953,1750237845688,-1183.1,0.00023295,6]
[366415955,1750237845697,-710.99,0.00023295,6]
[366415958,1750237845707,-500.0,0.00023338,2]
[366415960,1750237845719,-1211.94,0.00023342,6]
[366415962,1750237845728,-639.15,0.00023342,6]
[366415964,1750237845738,-460.0,0.00023342,6]
[366415966,1750237845748,-985.63,0.00023342,6]
[366415968,1750237845758,-861.56,0.00023342,6]
[366415970,1750237845767,-450.68,0.00023342,6]
[366415984,1750237845888,-460.0,0.00023342,6]
[366415986,1750237845897,-646.13,0.00023342,6]
[366415988,1750237845907,-460.0,0.00023342,6]
[366415990,1750237845917,-524.71,0.00023342,6]
[366415992,1750237845926,-872.9,0.00023342,6]
[366415994,1750237845936,-589.96,0.00023342,6]
[366415996,1750237845947,-171.84,0.00023342,6]
[366415998,1750237845957,-2708.45,0.00023342,6]
[366416000,1750237845969,-497.85,0.00023342,6]
[366416002,1750237845980,-676.0,0.00023342,6]
[366416004,1750237845990,-870.56,0.00023342,6]
[366416006,1750237846000,-168.0,0.00023362,2]
[366416008,1750237846010,-1183.1,0.00023405,6]
[366416010,1750237846020,-710.99,0.00023405,6]
[366416012,1750237846030,-432.44242761,0.00023417,9]
[366416014,1750237846040,-1211.94,0.00023452,6]
[366416016,1750237846051,-639.15,0.00023452,6]
[366416018,1750237846060,-460.0,0.00023452,6]
[366416020,1750237846070,-985.63,0.00023452,6]
[366416022,1750237846080,-861.56,0.00023452,6]
[366416024,1750237846090,-460.0,0.00023452,6]
[366416026,1750237846100,-646.13,0.00023452,6]
[366416028,1750237846110,-460.0,0.00023452,6]
[366416030,1750237846119,-524.71,0.00023452,6]
[366416032,1750237846129,-872.9,0.00023452,6]
[366416034,1750237846139,-589.96,0.00023452,6]
[366416036,1750237846148,-2708.45,0.00023452,6]
[366416038,1750237846158,-497.85,0.00023452,6]
[366416040,1750237846167,-676.0,0.00023452,6]
[366416042,1750237846176,-870.56,0.00023452,6]
[366416044,1750237846186,-326.0,0.00023486,2]
[366416046,1750237846196,-2182.12,0.00023512,2]
[366416048,1750237846207,-1183.1,0.00023514,6]
[366416050,1750237846219,-710.99,0.00023514,6]
[366416052,1750237846228,-592.635829,0.0002352,3]
[366416054,1750237846239,-306.0,0.00023534,2]
[366416056,1750237846248,-307.5017373,0.00023534,2]
[366416058,1750237846257,-1211.94,0.00023561,6]
[366416060,1750237846267,-639.15,0.00023561,6]
[366416062,1750237846277,-460.0,0.00023561,6]
[366416064,1750237846286,-985.63,0.00023561,6]
[366416066,1750237846295,-861.56,0.00023561,6]
[366416068,1750237846304,-460.0,0.00023561,6]
[366416070,1750237846313,-646.13,0.00023561,6]
[366416072,1750237846322,-460.0,0.00023561,6]
[366416074,1750237846333,-524.71,0.00023561,6]
[366416076,1750237846344,-589.96,0.00023561,6]
[366416078,1750237846353,-2708.45,0.00023561,6]
[366416080,1750237846363,-497.85,0.00023561,6]
[366416082,1750237846372,-676.0,0.00023561,6]
[366416084,1750237846381,-870.56,0.00023561,6]
[366416086,1750237846391,-500.0,0.00023569,2]
[366416088,1750237846400,-434056.95570161,0.000236,2]
[366416098,1750237846486,-1567.45825683,0.000236,2]
[366416148,1750237846951,-500.0,0.00018472,2]
[366416150,1750237846960,-500.0,0.00018472,2]
[366416152,1750237846971,-500.0,0.00018472,2]
[366416154,1750237846980,-500.0,0.00018472,2]
[366416156,1750237846990,-500.0,0.00018472,2]
[366416158,1750237846999,-500.0,0.00018472,2]
[366416160,1750237847008,-500.0,0.00018472,2]
[366416162,1750237847017,-500.0,0.00018472,2]
[366416163,1750237847026,-500.0,0.00018472,2]
[366416165,1750237847036,-500.0,0.00018472,2]
[366416167,1750237847046,-500.0,0.00018472,2]
[366416169,1750237847055,-500.0,0.00018472,2]
[366416171,1750237847065,-477.85920137,0.00018472,2]
[366416174,1750237847075,-500.0,0.00018472,2]
[366416176,1750237847085,-500.0,0.00018472,2]
[366416178,1750237847094,-500.0,0.00018472,2]
[366416180,1750237847103,-500.0,0.00018472,2]
[366416182,1750237847112,-500.0,0.00018472,2]
[366416184,1750237847122,-500.0,0.00018472,2]
[366416186,1750237847131,-514.85044455,0.00018472,2]
[366416188,1750237847140,-500.0,0.00018472,2]
[366416190,1750237847150,-500.0,0.00018472,2]
[366416192,1750237847158,-55.07564889,0.00018472,2]
[366416218,1750237847407,-101.44805903,0.00018472,2]
[366416234,1750237847546,-343.47629208,0.00018472,2]
[366416236,1750237847555,-500.0,0.00018472,2]
[366416238,1750237847565,-167.63879395,0.00018472,2]
[366416240,1750237847575,-214.54525576,0.00018472,2]
[366416242,1750237847586,-500.0,0.00018472,2]
[366416244,1750237847595,-500.0,0.00018472,2]
[366416246,1750237847605,-500.0,0.00018472,2]
[366416247,1750237847614,-500.0,0.00018472,2]
[366416249,1750237847623,-500.0,0.00018472,2]
[366416251,1750237847632,-500.0,0.00018472,2]
[366416253,1750237847642,-500.0,0.00018472,2]
[366416255,1750237847651,-500.0,0.00018472,2]
[366416257,1750237847661,-500.0,0.00018472,2]
[366416259,1750237847670,-500.0,0.00018472,2]
[366416260,1750237847679,-500.0,0.00018472,2]
[366416262,1750237847689,-500.0,0.00018472,2]
[366416265,1750237847699,-465.78205483,0.00018472,2]
[366416267,1750237847710,-500.0,0.00018472,2]
[366416269,1750237847720,-500.0,0.00018472,2]
[366416271,1750237847730,-500.0,0.00018472,2]
[366416273,1750237847739,-500.0,0.00018472,2]
[366416275,1750237847749,-500.0,0.00018472,2]
[366416277,1750237847758,-500.0,0.00018472,2]
[366416279,1750237847768,-500.0,0.00018472,2]
[366416280,1750237847777,-500.0,0.00018472,2]
[366416282,1750237847787,-500.0,0.00018472,2]
[366416285,1750237847797,-500.0,0.00018472,2]
[366416286,1750237847806,-500.0,0.00018472,2]
[366416288,1750237847816,-500.0,0.00018472,2]
[366416290,1750237847825,-500.0,0.00018472,2]
[366416292,1750237847835,-500.0,0.00018472,2]
[366416294,1750237847844,-500.0,0.00018472,2]
[366416296,1750237847853,-525.4104568,0.00018472,2]
[366416298,1750237847862,-606.03786998,0.00018472,2]
[366416300,1750237847871,-500.0,0.00018472,2]
[366416302,1750237847880,-500.0,0.00018472,2]
[366416304,1750237847890,-535.22942227,0.00018472,2]
[366416306,1750237847899,-500.0,0.00018472,2]
[366416308,1750237847908,-500.0,0.00018472,2]
[366416310,1750237847917,-500.0,0.00018472,2]
[366416312,1750237847927,-500.0,0.00018472,2]
[366416314,1750237847936,-500.0,0.00018472,2]
[366416316,1750237847945,-500.0,0.00018472,2]
[366416318,1750237847955,-500.0,0.00018472,2]
[366416320,1750237847965,-500.0,0.00018472,2]
[366416322,1750237847974,-500.0,0.00018472,2]
[366416324,1750237847984,-500.0,0.00018472,2]
[366416326,1750237847993,-500.0,0.00018472,2]
[366416328,1750237848002,-500.0,0.00018472,2]
[366416330,1750237848011,-500.0,0.00018472,2]
[366416332,1750237848020,-500.0,0.00018472,2]
[366416334,1750237848029,-500.0,0.00018472,2]
[366416336,1750237848039,-500.0,0.00018472,2]
[366416338,1750237848048,-500.0,0.00018472,2]
[366416340,1750237848058,-500.0,0.00018472,2]
[366416342,1750237848074,-398.14322296,0.00018472,2]
[366416344,1750237848084,-500.0,0.00018472,2]
[366416346,1750237848093,-500.0,0.00018472,2]
[366416348,1750237848102,-500.0,0.00018472,2]
[366416349,1750237848111,-500.0,0.00018472,2]
[366416351,1750237848121,-500.0,0.00018472,2]
[366416353,1750237848130,-500.0,0.00018472,2]
[366416355,1750237848140,-457.34267595,0.00021718,2]
[366416357,1750237848150,-427.8807935,0.00022921,2]
[366416359,1750237848160,-427.8807935,0.00023091,2]
[366416361,1750237848169,-427.8807935,0.00023544,2]
[366416363,1750237848179,-37121.1201073,0.000236,2]
[366416384,1750237848543,-833.9889466,0.00019566,2]
[366416386,1750237848552,-833.9889466,0.00019566,2]
[366416388,1750237848562,-833.9889466,0.00019566,2]
[366416390,1750237848572,-833.9889466,0.00019566,2]
[366416391,1750237848581,-833.9889466,0.00019566,2]
[366416393,1750237848590,-833.9889466,0.00019566,2]
[366416395,1750237848600,-833.9889466,0.00019566,2]
[366416397,1750237848609,-833.9889466,0.00019566,2]
[366416399,1750237848619,-833.9889466,0.00019566,2]
[366416401,1750237848628,-833.9889466,0.00019566,2]
[366416403,1750237848639,-833.9889466,0.00019566,2]
[366416405,1750237848648,-443.40023232,0.00019566,2]
[366416866,1750238234997,2000.0,0.00020285,120]
[366416867,1750238240745,156.20177956,0.000222,69]
[366416869,1750238408326,-164.79406157,0.00019675,2]
[366416871,1750238668601,163.158281,0.00013699,2]
[366416872,1750238675070,-5000.0,0.00019283,2]
[366416873,1750238675092,-160.0,0.00019283,2]
[366416874,1750238675115,-188.610434,0.00019718,2]
[366416875,1750238675136,-671.83,0.00019875,2]
[366416876,1750238675157,-760.279262,0.00020107,2]
[366416877,1750238675177,-604.09794784,0.00020537,2]
[366416878,1750238675198,-300.0,0.00020553,2]
[366416879,1750238675218,-300.0,0.00020554,2]
[366416880,1750238675237,-300.0,0.00020554,2]
[366416881,1750238675258,-1200.0,0.00020554,2]
[366416882,1750238675280,-15515.18235616,0.00020555,2]
[366416883,1750238722814,-5000.0,0.00020349,2]
[366416884,1750238722839,-300.0,0.00020554,2]
[366416885,1750238722864,-4700.0,0.00020555,2]
[366416893,1750238917189,1597.52908418,0.00018,2]
[366416894,1750238917212,8456.743061,0.00018,2]
[366416895,1750238918473,683.30791054,0.00018,2]
[366416930,1750239032176,-1079.43542471,0.00018711,2]
[366416932,1750239032186,-399.38823496,0.000189,2]
[366416934,1750239032195,-663.28,0.00020147,2]
[366416936,1750239032204,-4684.81764384,0.00020555,2]
[366416938,1750239032213,-184.083,0.00020637,2]
[366416940,1750239032224,-171.9938247,0.00020852,2]
[366416942,1750239032233,-177.883952,0.00020964,5]
[366416944,1750239032244,-192.45544091,0.00020964,5]
[366416946,1750239032257,-250.0,0.00021662,2]
[366416948,1750239032266,-300.0,0.00021662,2]
[366416950,1750239032276,-1762.54158378,0.00021663,2]
[366416952,1750239032290,-4074.16589593,0.00021663,2]
[366416960,1750239032395,-344.96,0.00021663,2]
[366416988,1750239038149,-2126.63732632,0.00021663,2]
[366416989,1750239038161,-2037.60474388,0.00021663,2]
[366416990,1750239038171,-207.4,0.00021663,2]
[366416991,1750239038181,-485.2994185,0.00021703,2]
[366416992,1750239038191,-246.04749027,0.000219,6]
[366416993,1750239038200,-453.7260635,0.00021916,2]
[366416994,1750239038210,-500.0,0.00021916,2]
[366416995,1750239038219,-273.97578387,0.00021916,2]
[366416996,1750239038230,-500.0,0.00021916,2]
[366416998,1750239038239,-567.33754111,0.00021916,2]
[366416999,1750239038249,-500.0,0.00021916,2]
[366417000,1750239038259,-559.08128729,0.00021916,2]
[366417001,1750239038268,-500.0,0.00021916,2]
[366417002,1750239038277,-336.22612109,0.00021916,2]
[366417003,1750239038287,-500.0,0.00021916,2]
[366417004,1750239038296,-239.8143223,0.00021916,2]
[366417005,1750239038305,-250.21308523,0.00021916,2]
[366417006,1750239038315,-460.0,0.00021917,6]
[366417007,1750239038324,-460.0,0.00021917,6]
[366417008,1750239038334,-460.0,0.00021917,6]
[366417009,1750239038343,-460.0,0.00021917,6]
[366417010,1750239038353,-460.0,0.00021917,6]
[366417011,1750239038362,-460.0,0.00021917,6]
[366417012,1750239038372,-460.0,0.00021917,6]
[366417013,1750239038382,-623.17,0.00021917,6]
[366417014,1750239038391,-509.27,0.00021917,6]
[366417015,1750239038401,-460.0,0.00021917,6]
[366417016,1750239038410,-460.0,0.00021917,6]
[366417017,1750239038420,-547.03,0.00021917,6]
[366417018,1750239038429,-418.27,0.00021917,6]
[366417019,1750239038439,-460.0,0.00021917,6]
[366417020,1750239038449,-353.62984601,0.00021917,6]
[366417021,1750239038458,-460.0,0.00021917,6]
[366417022,1750239038468,-198.9,0.00021917,6]
[366417023,1750239038478,-460.0,0.00021917,6]
[366417024,1750239038487,-460.0,0.00021917,6]
[366417025,1750239038497,-460.0,0.00021917,6]
[366417026,1750239038507,-369.9,0.00021917,6]
[366417027,1750239038517,-460.0,0.00021917,6]
[366417028,1750239038526,-460.0,0.00021917,6]
[366417029,1750239038535,-460.0,0.00021917,6]
[366417030,1750239038545,-460.0,0.00021917,6]
[366417031,1750239038554,-460.0,0.00021917,6]
[366417032,1750239038563,-460.0,0.00021917,6]
[366417033,1750239038574,-460.0,0.00021917,6]
[366417034,1750239038585,-460.0,0.00021917,6]
[366417035,1750239038594,-460.0,0.00021917,6]
[366417036,1750239038604,-280.25,0.00021917,6]
[366417037,1750239038616,-460.0,0.00021917,6]
[366417038,1750239038625,-332.96,0.00021917,6]
[366417039,1750239038635,-440.0,0.00021917,6]
[366417040,1750239038644,-460.0,0.00021917,6]
[366417041,1750239038653,-460.0,0.00021917,6]
[366417042,1750239038663,-764.88,0.00021917,6]
[366417043,1750239038672,-1047.69,0.00021917,6]
[366417044,1750239038681,-460.0,0.00021917,6]
[366417045,1750239038690,-267.46643218,0.00021917,6]
[366417046,1750239038699,-460.0,0.00021917,6]
[366417047,1750239038709,-625.33,0.00021917,6]
[366417048,1750239038718,-1326.56,0.00021978,2]
[366417049,1750239038728,-460.0,0.00022027,6]
[366417050,1750239038737,-460.0,0.00022027,6]
[366417051,1750239038746,-460.0,0.00022027,6]
[366417052,1750239038755,-460.0,0.00022027,6]
[366417053,1750239038764,-460.0,0.00022027,6]
[366417054,1750239038773,-460.0,0.00022027,6]
[366417055,1750239038783,-623.17,0.00022027,6]
[366417056,1750239038792,-509.27,0.00022027,6]
[366417057,1750239038802,-460.0,0.00022027,6]
[366417058,1750239038811,-460.0,0.00022027,6]
[366417059,1750239038821,-460.0,0.00022027,6]
[366417060,1750239038831,-460.0,0.00022027,6]
[366417061,1750239038840,-460.0,0.00022027,6]
[366417062,1750239038850,-460.0,0.00022027,6]
[366417063,1750239038860,-460.0,0.00022027,6]
[366417064,1750239038869,-460.0,0.00022027,6]
[366417065,1750239038879,-460.0,0.00022027,6]
[366417066,1750239038892,-460.0,0.00022027,6]
[366417067,1750239038902,-460.0,0.00022027,6]
[366417068,1750239038911,-503.07939211,0.00022027,6]
[366417069,1750239038920,-460.0,0.00022027,6]
[366417070,1750239038930,-460.0,0.00022027,6]
[366417071,1750239038940,-171.95,0.00022027,6]
[366417072,1750239038950,-764.88,0.00022027,6]
[366417073,1750239038959,-1047.69,0.00022027,6]
[366417074,1750239038969,-460.0,0.00022027,6]
[366417075,1750239038980,-460.0,0.00022027,6]
[366417076,1750239038990,-625.33,0.00022027,6]
[366417077,1750239039109,-995.73801158,0.00022029,2]
[366417078,1750239039119,-246.04749019,0.00022038,6]
[366417079,1750239039129,-436.27,0.00022136,6]
[366417080,1750239039138,-460.0,0.00022136,6]
[366417081,1750239039148,-460.0,0.00022136,6]
[366417082,1750239039157,-460.0,0.00022136,6]
[366417083,1750239039166,-460.0,0.00022136,6]
[366417084,1750239039175,-460.0,0.00022136,6]
[366417085,1750239039184,-623.17,0.00022136,6]
[366417086,1750239039194,-509.27,0.00022136,6]
[366417087,1750239039204,-460.0,0.00022136,6]
[366417088,1750239039215,-460.0,0.00022136,6]
[366417089,1750239039224,-460.0,0.00022136,6]
[366417090,1750239039233,-460.0,0.00022136,6]
[366417091,1750239039243,-460.0,0.00022136,6]
[366417092,1750239039252,-460.0,0.00022136,6]
[366417093,1750239039263,-460.0,0.00022136,6]
[366417094,1750239039272,-460.0,0.00022136,6]
[366417095,1750239039281,-552.35,0.00022136,6]
[366417096,1750239039291,-460.0,0.00022136,6]
[366417097,1750239039300,-764.88,0.00022136,6]
[366417098,1750239039309,-1047.69,0.00022136,6]
[366417099,1750239039318,-460.0,0.00022136,6]
[366417100,1750239039328,-460.0,0.00022136,6]
[366417101,1750239039338,-625.33,0.00022136,6]
[366417102,1750239039348,-246.04749019,0.00022176,6]
[366417103,1750239039357,-460.0,0.00022246,6]
[366417104,1750239039367,-206.13,0.00022246,6]
[366417105,1750239039376,-460.0,0.00022246,6]
[366417106,1750239039386,-460.0,0.00022246,6]
[366417107,1750239039395,-623.17,0.00022246,6]
[366417108,1750239039405,-509.27,0.00022246,6]
[366417109,1750239039414,-460.0,0.00022246,6]
[366417110,1750239039423,-460.0,0.00022246,6]
[366417111,1750239039433,-460.0,0.00022246,6]
[366417112,1750239039442,-460.0,0.00022246,6]
[366417113,1750239039451,-460.0,0.00022246,6]